[Event "*** Titled Tuesday Blitz"]
[Site "Chess.com"]
[Date "2020.05.12"]
[Round "3"]
[White "Mikhail_Biryukov"]
[Black "mc4chess"]
[Result "1-0"]
[WhiteElo "2660"]
[BlackElo "2411"]
[TimeControl "180+1"]
[EndTime "10:29:49 PDT"]
[Termination "Mikhail_Biryukov won on time"]

1. e4 {[%clk 0:03:00.9]} 1... c5 {[%clk 0:02:55.3]} 2. Nf3 {[%clk 0:02:59.8]}
2... e6 {[%clk 0:02:55]} 3. d4 {[%clk 0:02:57.5]} 3... cxd4 {[%clk 0:02:54.7]}
4. Nxd4 {[%clk 0:02:57.8]} 4... a6 {[%clk 0:02:54.6]} 5. Bd3 {[%clk 0:02:56.7]}
5... Qc7 {[%clk 0:02:54.3]} 6. O-O {[%clk 0:02:54.8]} 6... Nf6 {[%clk
0:02:54.2]} 7. Nd2 {[%clk 0:02:45.5]} 7... h5 {[%clk 0:02:53.6]} 8. N2f3 {[%clk
0:02:41.5]} 8... Ng4 {[%clk 0:02:46.5]} 9. Re1 {[%clk 0:02:38.1]} 9... Nc6
{[%clk 0:02:44]} 10. c3 {[%clk 0:02:35.6]} 10... Bc5 {[%clk 0:02:40.4]} 11. h3
{[%clk 0:02:28.2]} 11... Nge5 {[%clk 0:02:31.6]} 12. Nxe5 {[%clk 0:02:24.5]}
12... Qxe5 {[%clk 0:02:26]} 13. Nf3 {[%clk 0:02:22]} 13... Qc7 {[%clk
0:02:19.9]} 14. Be3 {[%clk 0:02:22.4]} 14... Bxe3 {[%clk 0:02:19.1]} 15. Rxe3
{[%clk 0:02:23.3]} 15... d6 {[%clk 0:02:13.7]} 16. Qe2 {[%clk 0:02:18.7]} 16...
Ne5 {[%clk 0:02:10.3]} 17. Nxe5 {[%clk 0:02:18]} 17... dxe5 {[%clk 0:02:11.2]}
18. Rg3 {[%clk 0:02:08.3]} 18... g6 {[%clk 0:02:11]} 19. Qf3 {[%clk 0:02:01.8]}
19... Qe7 {[%clk 0:01:57.5]} 20. Qe3 {[%clk 0:01:57.7]} 20... Bd7 {[%clk
0:01:55.7]} 21. Rg5 {[%clk 0:01:53.7]} 21... Bc6 {[%clk 0:01:50.8]} 22. Rxe5
{[%clk 0:01:51.3]} 22... Rd8 {[%clk 0:01:39.1]} 23. Be2 {[%clk 0:01:46.1]} 23...
Qd6 {[%clk 0:01:22.7]} 24. Rc5 {[%clk 0:01:42.6]} 24... Qd2 {[%clk 0:01:07.5]}
25. Rd1 {[%clk 0:00:10.3]} 25... Qxe3 {[%clk 0:01:04.6]} 26. Rxd8+ {[%clk
0:00:10.8]} 26... Kxd8 {[%clk 0:01:05.5]} 27. fxe3 {[%clk 0:00:11.7]} 27... Bxe4
{[%clk 0:01:04.6]} 28. Rc4 {[%clk 0:00:12.4]} 28... Bd5 {[%clk 0:01:01.8]} 29.
Rd4 {[%clk 0:00:12.7]} 29... Ke7 {[%clk 0:01:02.4]} 30. c4 {[%clk 0:00:13]}
30... Bc6 {[%clk 0:01:02.6]} 31. Kf2 {[%clk 0:00:13.2]} 31... e5 {[%clk
0:01:01.5]} 32. Rd2 {[%clk 0:00:12.2]} 32... Rd8 {[%clk 0:00:56.7]} 33. Rxd8
{[%clk 0:00:12.1]} 33... Kxd8 {[%clk 0:00:56.6]} 34. g4 {[%clk 0:00:12.1]} 34...
hxg4 {[%clk 0:00:56.6]} 35. hxg4 {[%clk 0:00:13]} 35... f5 {[%clk 0:00:55.5]}
36. g5 {[%clk 0:00:11.8]} 36... Ke7 {[%clk 0:00:54]} 37. b4 {[%clk 0:00:11.8]}
37... Ke6 {[%clk 0:00:51.6]} 38. Kg3 {[%clk 0:00:11.1]} 38... Be4 {[%clk
0:00:51.5]} 39. a3 {[%clk 0:00:09.1]} 39... Kd6 {[%clk 0:00:43]} 40. Bd1 {[%clk
0:00:09.3]} 40... Bd3 {[%clk 0:00:39.8]} 41. Bb3 {[%clk 0:00:08.9]} 41... Ke7
{[%clk 0:00:14.7]} 42. c5 {[%clk 0:00:08.5]} 42... Be4 {[%clk 0:00:13.4]} 43.
Bc4 {[%clk 0:00:08.7]} 43... Bc6 {[%clk 0:00:11.1]} 44. Kf2 {[%clk 0:00:07.1]}
44... Kf8 {[%clk 0:00:07.7]} 45. Kg3 {[%clk 0:00:07.1]} 45... Ke7 {[%clk
0:00:08.1]} 46. Bb3 {[%clk 0:00:07.7]} 46... Kf8 {[%clk 0:00:05.9]} 47. Kf2
{[%clk 0:00:06.3]} 47... Ke7 {[%clk 0:00:06.1]} 48. Ke2 {[%clk 0:00:06.4]} 48...
f4 {[%clk 0:00:05.5]} 49. exf4 {[%clk 0:00:06]} 49... exf4 {[%clk 0:00:06.4]}
50. Bc2 {[%clk 0:00:06.7]} 50... Be8 {[%clk 0:00:04.7]} 51. Be4 {[%clk
0:00:05.8]} 51... Bc6 {[%clk 0:00:02.6]} 52. Bxc6 {[%clk 0:00:05.5]} 52... Ke6
{[%clk 0:00:03.5]} 53. Kf3 {[%clk 0:00:06.2]} 53... bxc6 {[%clk 0:00:03.5]} 54.
Kxf4 {[%clk 0:00:06.5]} 54... Kd5 {[%clk 0:00:04.4]} 55. a4 {[%clk 0:00:05.5]}
55... Kc4 {[%clk 0:00:04.4]} 56. Ke5 {[%clk 0:00:05.2]} 56... Kxb4 {[%clk
0:00:04.7]} 57. Kf6 {[%clk 0:00:05.9]} 57... Kxc5 {[%clk 0:00:04.1]} 58. Kxg6
{[%clk 0:00:06.8]} 58... Kd6 {[%clk 0:00:03.3]} 59. Kf6 {[%clk 0:00:07.3]} 59...
c5 {[%clk 0:00:04.2]} 60. g6 {[%clk 0:00:07.9]} 60... c4 {[%clk 0:00:05.1]} 61.
g7 {[%clk 0:00:08.6]} 61... c3 {[%clk 0:00:06]} 62. g8=Q {[%clk 0:00:09.2]}
62... Kc5 {[%clk 0:00:06.9]} 63. Qc8+ {[%clk 0:00:09.2]} 63... Kb4 {[%clk
0:00:07.8]} 64. Qxa6 {[%clk 0:00:09.3]} 64... c2 {[%clk 0:00:07.9]} 65. Qb5+
{[%clk 0:00:09.7]} 1-0

[Event "*** Titled Tuesday Blitz"]
[Site "Chess.com"]
[Date "2020.05.12"]
[Round "3"]
[White "BIG_Pirate"]
[Black "lionheart95"]
[Result "1/2-1/2"]
[WhiteElo "2313"]
[BlackElo "2514"]
[TimeControl "180+1"]
[EndTime "10:29:53 PDT"]
[Termination "Game drawn by repetition"]

1. Nf3 {[%clk 0:03:00.9]} 1... d5 {[%clk 0:02:58.9]} 2. c4 {[%clk 0:03:00.7]}
2... e6 {[%clk 0:02:57.2]} 3. g3 {[%clk 0:03:00.4]} 3... Nf6 {[%clk 0:02:56.5]}
4. Bg2 {[%clk 0:03:00.5]} 4... Be7 {[%clk 0:02:56.3]} 5. O-O {[%clk 0:03:00.4]}
5... O-O {[%clk 0:02:56.8]} 6. d4 {[%clk 0:03:00.5]} 6... dxc4 {[%clk
0:02:56.1]} 7. Qc2 {[%clk 0:03:00.6]} 7... c5 {[%clk 0:02:50.7]} 8. Rd1 {[%clk
0:02:57.5]} 8... cxd4 {[%clk 0:02:47.5]} 9. Rxd4 {[%clk 0:02:45.8]} 9... Qb6
{[%clk 0:02:40.2]} 10. Rxc4 {[%clk 0:02:38.3]} 10... Nc6 {[%clk 0:02:32.1]} 11.
Be3 {[%clk 0:02:38.2]} 11... Qa5 {[%clk 0:02:29.9]} 12. Bc5 {[%clk 0:02:23.3]}
12... Bxc5 {[%clk 0:02:03.5]} 13. Rxc5 {[%clk 0:02:24.2]} 13... Qb6 {[%clk
0:02:01.7]} 14. a3 {[%clk 0:02:06.3]} 14... Bd7 {[%clk 0:01:55.9]} 15. Nbd2
{[%clk 0:01:55.8]} 15... Rac8 {[%clk 0:01:53.8]} 16. Rc1 {[%clk 0:01:54.9]}
16... h6 {[%clk 0:01:29.2]} 17. b4 {[%clk 0:01:53.6]} 17... a6 {[%clk
0:01:22.5]} 18. Nc4 {[%clk 0:01:52.5]} 18... Qa7 {[%clk 0:01:02.9]} 19. Nd6
{[%clk 0:01:50.5]} 19... Rb8 {[%clk 0:00:56.5]} 20. h3 {[%clk 0:00:55.3]} 20...
Rfd8 {[%clk 0:00:55.2]} 21. Qc3 {[%clk 0:00:48.4]} 21... Ne8 {[%clk 0:00:19.6]}
22. Nxe8 {[%clk 0:00:36.9]} 22... Bxe8 {[%clk 0:00:20.3]} 23. Ne5 {[%clk
0:00:27.6]} 23... Nxe5 {[%clk 0:00:19.2]} 24. Qxe5 {[%clk 0:00:28.5]} 24... Qb6
{[%clk 0:00:18.7]} 25. Rc7 {[%clk 0:00:25]} 25... Qd6 {[%clk 0:00:18.3]} 26.
Qxd6 {[%clk 0:00:21.2]} 26... Rxd6 {[%clk 0:00:18.5]} 27. Rxb7 {[%clk
0:00:21.9]} 27... Rxb7 {[%clk 0:00:16.8]} 28. Bxb7 {[%clk 0:00:22.8]} 28... Kf8
{[%clk 0:00:17.2]} 29. Rc7 {[%clk 0:00:17.5]} 29... Bb5 {[%clk 0:00:15.8]} 30.
e3 {[%clk 0:00:15.7]} 30... Rd1+ {[%clk 0:00:15.7]} 31. Kg2 {[%clk 0:00:15]}
31... Ra1 {[%clk 0:00:14.5]} 32. Bc6 {[%clk 0:00:05.7]} 32... Rc1 {[%clk
0:00:11.6]} 33. Rc8+ {[%clk 0:00:05.8]} 33... Ke7 {[%clk 0:00:11.7]} 34. Bb7
{[%clk 0:00:06.4]} 34... Ra1 {[%clk 0:00:11]} 35. Bc6 {[%clk 0:00:02.5]} 35...
Bxc6+ {[%clk 0:00:09.8]} 36. Rxc6 {[%clk 0:00:02.2]} 36... Rxa3 {[%clk
0:00:10.7]} 37. Rb6 {[%clk 0:00:03.1]} 37... Rb3 {[%clk 0:00:08.5]} 38. Rb7+
{[%clk 0:00:04]} 38... Kf6 {[%clk 0:00:07.1]} 39. Ra7 {[%clk 0:00:04.4]} 39...
Rxb4 {[%clk 0:00:06.9]} 40. Rxa6 {[%clk 0:00:04.8]} 40... h5 {[%clk 0:00:07.7]}
41. Ra3 {[%clk 0:00:05]} 41... g6 {[%clk 0:00:07.8]} 42. Ra5 {[%clk 0:00:05.4]}
42... Kg7 {[%clk 0:00:07.4]} 43. h4 {[%clk 0:00:05.9]} 43... Rb3 {[%clk
0:00:07.2]} 44. Rc5 {[%clk 0:00:06.3]} 44... Kh6 {[%clk 0:00:06.8]} 45. Rg5
{[%clk 0:00:06.6]} 45... f6 {[%clk 0:00:06.3]} 46. Ra5 {[%clk 0:00:07]} 46... e5
{[%clk 0:00:05.6]} 47. Ra6 {[%clk 0:00:07.4]} 47... f5 {[%clk 0:00:05.6]} 48.
Ra5 {[%clk 0:00:03]} 48... e4 {[%clk 0:00:05.8]} 49. Ra8 {[%clk 0:00:03.3]}
49... Rb1 {[%clk 0:00:05.9]} 50. Rh8+ {[%clk 0:00:03.5]} 50... Kg7 {[%clk
0:00:05.4]} 51. Ra8 {[%clk 0:00:04.4]} 51... Rb2 {[%clk 0:00:04.9]} 52. Ra7+
{[%clk 0:00:04.5]} 52... Kh6 {[%clk 0:00:05]} 53. Ra8 {[%clk 0:00:05]} 53... Kg7
{[%clk 0:00:05.2]} 54. Ra7+ {[%clk 0:00:04.9]} 54... Kh6 {[%clk 0:00:05.5]} 55.
Ra8 {[%clk 0:00:05.8]} 55... Kg7 {[%clk 0:00:05.5]} 1/2-1/2

[Event "*** Titled Tuesday Blitz"]
[Site "Chess.com"]
[Date "2020.05.12"]
[Round "3"]
[White "eightbyeightchess"]
[Black "Fins0905"]
[Result "0-1"]
[WhiteElo "2397"]
[BlackElo "2614"]
[TimeControl "180+1"]
[EndTime "10:29:56 PDT"]
[Termination "Fins0905 won by resignation"]

1. e4 {[%clk 0:03:00.9]} 1... d5 {[%clk 0:02:58.1]} 2. exd5 {[%clk 0:03:00.2]}
2... Qxd5 {[%clk 0:02:59]} 3. Nc3 {[%clk 0:02:56.4]} 3... Qa5 {[%clk 0:02:58.1]}
4. h3 {[%clk 0:02:54.8]} 4... c6 {[%clk 0:02:50.6]} 5. Nf3 {[%clk 0:02:54.1]}
5... Nf6 {[%clk 0:02:46.8]} 6. d4 {[%clk 0:02:51.9]} 6... Bf5 {[%clk 0:02:44.1]}
7. Bc4 {[%clk 0:02:48.4]} 7... e6 {[%clk 0:02:43.5]} 8. O-O {[%clk 0:02:46.6]}
8... Nbd7 {[%clk 0:02:42.9]} 9. Bf4 {[%clk 0:02:45]} 9... Bb4 {[%clk 0:02:40.8]}
10. Ne2 {[%clk 0:02:39.1]} 10... h6 {[%clk 0:02:38.2]} 11. Ng3 {[%clk
0:02:37.4]} 11... Bh7 {[%clk 0:02:36.8]} 12. Bd3 {[%clk 0:02:32.9]} 12... Bxd3
{[%clk 0:02:33.9]} 13. Qxd3 {[%clk 0:02:33.8]} 13... O-O {[%clk 0:02:33.8]} 14.
c3 {[%clk 0:02:32]} 14... Be7 {[%clk 0:02:31.4]} 15. Rfe1 {[%clk 0:02:30.8]}
15... Rfe8 {[%clk 0:02:29.7]} 16. Ne5 {[%clk 0:02:29.6]} 16... Rad8 {[%clk
0:02:21.2]} 17. a4 {[%clk 0:02:21.6]} 17... Nxe5 {[%clk 0:02:07.8]} 18. Rxe5
{[%clk 0:02:19.8]} 18... Nd5 {[%clk 0:01:56.2]} 19. Bd2 {[%clk 0:01:45.9]} 19...
Qc7 {[%clk 0:01:52.4]} 20. Nh5 {[%clk 0:01:41.6]} 20... Nf6 {[%clk 0:01:42.6]}
21. Rae1 {[%clk 0:01:24.8]} 21... Rd5 {[%clk 0:01:35.5]} 22. Nxf6+ {[%clk
0:01:10.7]} 22... Bxf6 {[%clk 0:01:35.2]} 23. Rxd5 {[%clk 0:01:09.4]} 23... cxd5
{[%clk 0:01:36.1]} 24. Qf3 {[%clk 0:01:08.1]} 24... Bg5 {[%clk 0:01:20.6]} 25.
Bxg5 {[%clk 0:01:03.4]} 25... hxg5 {[%clk 0:01:21.5]} 26. Re5 {[%clk 0:01:02.6]}
26... f6 {[%clk 0:01:19.7]} 27. Re2 {[%clk 0:00:54.3]} 27... Qf4 {[%clk
0:01:11.5]} 28. Qd3 {[%clk 0:00:39.9]} 28... Kf7 {[%clk 0:00:53.9]} 29. a5
{[%clk 0:00:31.7]} 29... a6 {[%clk 0:00:53.4]} 30. g3 {[%clk 0:00:23.7]} 30...
Qc7 {[%clk 0:00:53.2]} 31. Kg2 {[%clk 0:00:20.5]} 31... Qxa5 {[%clk 0:00:51.9]}
32. c4 {[%clk 0:00:19.7]} 32... dxc4 {[%clk 0:00:47.4]} 33. Qxc4 {[%clk
0:00:19.6]} 33... Re7 {[%clk 0:00:40.7]} 34. Qc8 {[%clk 0:00:17.8]} 34... Qd5+
{[%clk 0:00:39.3]} 35. Kh2 {[%clk 0:00:17.6]} 35... Qxd4 {[%clk 0:00:37.4]} 36.
Rc2 {[%clk 0:00:17.6]} 36... Kg6 {[%clk 0:00:15.8]} 37. Kg1 {[%clk 0:00:17.1]}
37... Kh7 {[%clk 0:00:14.7]} 38. Qb8 {[%clk 0:00:16.1]} 38... Rd7 {[%clk
0:00:11.8]} 39. Rc8 {[%clk 0:00:15.3]} 39... Qd1+ {[%clk 0:00:10.7]} 40. Kh2
{[%clk 0:00:14.8]} 40... Kg6 {[%clk 0:00:10]} 41. Rc3 {[%clk 0:00:12.8]} 41...
Re7 {[%clk 0:00:06.9]} 42. Qf8 {[%clk 0:00:10.8]} 42... Rf7 {[%clk 0:00:06.3]}
43. Qb4 {[%clk 0:00:10.4]} 43... Qd5 {[%clk 0:00:06]} 44. Qg4 {[%clk 0:00:07.2]}
44... Qf5 {[%clk 0:00:05.7]} 45. Qe2 {[%clk 0:00:07.5]} 45... b5 {[%clk
0:00:05.8]} 46. Rf3 {[%clk 0:00:07.9]} 46... Qe5 {[%clk 0:00:05.7]} 47. Re3
{[%clk 0:00:08.5]} 47... Qd5 {[%clk 0:00:05.6]} 48. Qc2+ {[%clk 0:00:08.4]}
48... f5 {[%clk 0:00:05.4]} 49. Qe2 {[%clk 0:00:09.3]} 49... Kf6 {[%clk
0:00:05.6]} 50. Rd3 {[%clk 0:00:08.3]} 50... Qe5 {[%clk 0:00:05.4]} 51. Re3
{[%clk 0:00:08.7]} 51... Qd6 {[%clk 0:00:05.2]} 52. Qc2 {[%clk 0:00:08.5]} 52...
Rc7 {[%clk 0:00:05]} 53. Qe2 {[%clk 0:00:08.4]} 53... Qd5 {[%clk 0:00:05]} 54.
Qh5 {[%clk 0:00:08.3]} 54... g6 {[%clk 0:00:04.5]} 55. Qh8+ {[%clk 0:00:08.1]}
55... Rg7 {[%clk 0:00:04.4]} 56. Qf8+ {[%clk 0:00:08.1]} 56... Rf7 {[%clk
0:00:04.9]} 57. Qh8+ {[%clk 0:00:08.5]} 57... Ke7 {[%clk 0:00:05.3]} 58. Qc8
{[%clk 0:00:08.9]} 58... Qd7 {[%clk 0:00:05.3]} 59. Qc5+ {[%clk 0:00:08.8]}
59... Kf6 {[%clk 0:00:05.3]} 60. Qc3+ {[%clk 0:00:08.5]} 60... Ke7 {[%clk
0:00:05.1]} 61. Qb4+ {[%clk 0:00:08.6]} 61... Qd6 {[%clk 0:00:05.2]} 62. Qc3
{[%clk 0:00:08.8]} 62... f4 {[%clk 0:00:05.4]} 63. Rd3 {[%clk 0:00:08.8]} 63...
fxg3+ {[%clk 0:00:05.5]} 64. fxg3 {[%clk 0:00:08.6]} 64... Qb6 {[%clk
0:00:05.4]} 65. Qb4+ {[%clk 0:00:07.4]} 65... Ke8 {[%clk 0:00:04.8]} 66. Rd2
{[%clk 0:00:06.5]} 66... Rf2+ {[%clk 0:00:04.5]} 67. Rxf2 {[%clk 0:00:07.1]}
67... Qxf2+ {[%clk 0:00:05.3]} 68. Kh1 {[%clk 0:00:07.7]} 68... Qxg3 {[%clk
0:00:05]} 69. Qe4 {[%clk 0:00:07.6]} 69... Qxh3+ {[%clk 0:00:04.7]} 70. Kg1
{[%clk 0:00:08]} 70... Qf5 {[%clk 0:00:04.8]} 71. Qc6+ {[%clk 0:00:07.1]} 71...
Kf7 {[%clk 0:00:05.2]} 72. Qxa6 {[%clk 0:00:06.9]} 72... Qc5+ {[%clk 0:00:04.5]}
73. Kg2 {[%clk 0:00:06.7]} 73... b4 {[%clk 0:00:04.9]} 74. Qb7+ {[%clk
0:00:06.6]} 74... Kf6 {[%clk 0:00:05.3]} 75. Qf3+ {[%clk 0:00:04.5]} 75... Qf5
{[%clk 0:00:05.5]} 76. Qb3 {[%clk 0:00:05.4]} 76... Qd5+ {[%clk 0:00:05.5]} 0-1

[Event "*** Titled Tuesday Blitz"]
[Site "Chess.com"]
[Date "2020.05.12"]
[Round "3"]
[White "BabyFacedAssasin"]
[Black "Nikolaj_6"]
[Result "1/2-1/2"]
[WhiteElo "2260"]
[BlackElo "2563"]
[TimeControl "180+1"]
[EndTime "10:29:59 PDT"]
[Termination "Game drawn by repetition"]

1. e4 {[%clk 0:03:00.9]} 1... c5 {[%clk 0:02:59.8]} 2. Nf3 {[%clk 0:02:58.7]}
2... d6 {[%clk 0:03:00.1]} 3. d4 {[%clk 0:02:58.7]} 3... cxd4 {[%clk 0:03:00.4]}
4. Nxd4 {[%clk 0:02:59.6]} 4... Nf6 {[%clk 0:03:00.6]} 5. Nc3 {[%clk 0:02:58.7]}
5... a6 {[%clk 0:03:00.5]} 6. h3 {[%clk 0:02:59.1]} 6... e5 {[%clk 0:03:00.3]}
7. Nde2 {[%clk 0:02:57.9]} 7... h5 {[%clk 0:03:00.3]} 8. Bg5 {[%clk 0:02:57.3]}
8... Be6 {[%clk 0:03:00.2]} 9. Bxf6 {[%clk 0:02:52.6]} 9... Qxf6 {[%clk
0:03:00]} 10. Nd5 {[%clk 0:02:53.1]} 10... Qd8 {[%clk 0:03:00.2]} 11. Nec3
{[%clk 0:02:45.3]} 11... Nd7 {[%clk 0:03:00.1]} 12. Be2 {[%clk 0:02:41.2]} 12...
g6 {[%clk 0:02:58.9]} 13. Ne3 {[%clk 0:02:31.4]} 13... Rc8 {[%clk 0:02:56.5]}
14. Ncd5 {[%clk 0:02:28.9]} 14... Nc5 {[%clk 0:02:52.7]} 15. Bd3 {[%clk
0:02:16.2]} 15... Bh6 {[%clk 0:02:52.1]} 16. O-O {[%clk 0:02:11.8]} 16... O-O
{[%clk 0:02:50.9]} 17. f4 {[%clk 0:02:09.4]} 17... exf4 {[%clk 0:02:44.4]} 18.
Nxf4 {[%clk 0:02:07.9]} 18... Bd7 {[%clk 0:02:23.2]} 19. Ned5 {[%clk 0:01:56.1]}
19... Bc6 {[%clk 0:02:19.5]} 20. Nxh5 {[%clk 0:01:42.9]} 20... gxh5 {[%clk
0:01:53]} 21. Qxh5 {[%clk 0:01:40.9]} 21... Qg5 {[%clk 0:01:42.4]} 22. Nf6+
{[%clk 0:01:26.2]} 22... Kg7 {[%clk 0:01:36.3]} 23. Rf5 {[%clk 0:01:07.1]} 23...
Qxh5 {[%clk 0:01:33.7]} 24. Nxh5+ {[%clk 0:01:08]} 24... Kh8 {[%clk 0:01:27.9]}
25. Raf1 {[%clk 0:01:00.7]} 25... Nxe4 {[%clk 0:01:07.3]} 26. Rxf7 {[%clk
0:00:56.4]} 26... Rxf7 {[%clk 0:01:01.4]} 27. Rxf7 {[%clk 0:00:57.3]} 27... Rf8
{[%clk 0:00:58.2]} 28. Rxf8+ {[%clk 0:00:55.2]} 28... Bxf8 {[%clk 0:00:57.5]}
29. g4 {[%clk 0:00:53.6]} 29... Be7 {[%clk 0:00:51.8]} 30. Nf4 {[%clk
0:00:48.3]} 30... Kg7 {[%clk 0:00:47.8]} 31. Ne6+ {[%clk 0:00:47.9]} 31... Kf6
{[%clk 0:00:46.2]} 32. Nd4 {[%clk 0:00:48.4]} 32... d5 {[%clk 0:00:43.5]} 33.
Nxc6 {[%clk 0:00:46.6]} 33... bxc6 {[%clk 0:00:42.7]} 34. Bxa6 {[%clk
0:00:47.1]} 34... Ke5 {[%clk 0:00:40.9]} 35. Bd3 {[%clk 0:00:45.3]} 35... Kf4
{[%clk 0:00:35.3]} 36. Kg2 {[%clk 0:00:44]} 36... Bf6 {[%clk 0:00:33.3]} 37. b3
{[%clk 0:00:40.9]} 37... c5 {[%clk 0:00:33.4]} 38. a4 {[%clk 0:00:35.7]} 38...
Bd8 {[%clk 0:00:33.3]} 39. Ba6 {[%clk 0:00:28.8]} 39... Ke5 {[%clk 0:00:28]} 40.
Kf3 {[%clk 0:00:24.7]} 40... Ng5+ {[%clk 0:00:27.2]} 41. Kg3 {[%clk 0:00:24.2]}
41... Ne4+ {[%clk 0:00:26.5]} 42. Kf3 {[%clk 0:00:24.2]} 42... Bh4 {[%clk
0:00:22.3]} 43. Bd3 {[%clk 0:00:22]} 43... Ng5+ {[%clk 0:00:21.6]} 44. Kg2
{[%clk 0:00:21.9]} 44... Be1 {[%clk 0:00:21]} 45. Kf1 {[%clk 0:00:20.2]} 45...
Bh4 {[%clk 0:00:20.4]} 46. a5 {[%clk 0:00:19.6]} 46... Kd6 {[%clk 0:00:16]} 47.
a6 {[%clk 0:00:19.9]} 47... Kc7 {[%clk 0:00:15.9]} 48. Ke2 {[%clk 0:00:19.7]}
48... Kb6 {[%clk 0:00:15.9]} 49. Ke3 {[%clk 0:00:19.9]} 49... Nxh3 {[%clk
0:00:15.9]} 50. c4 {[%clk 0:00:16]} 50... Bg5+ {[%clk 0:00:13.7]} 51. Kf3 {[%clk
0:00:14.3]} 51... d4 {[%clk 0:00:14.1]} 52. Bf1 {[%clk 0:00:09.5]} 52... Nf4
{[%clk 0:00:14]} 53. Ke4 {[%clk 0:00:09.7]} 53... Kxa6 {[%clk 0:00:14.1]} 54. b4
{[%clk 0:00:08.8]} 54... cxb4 {[%clk 0:00:13.5]} 55. Kxd4 {[%clk 0:00:09.1]}
55... Ka5 {[%clk 0:00:13.9]} 56. c5 {[%clk 0:00:07.7]} 56... Ne6+ {[%clk
0:00:12.3]} 57. Kc4 {[%clk 0:00:07.3]} 57... Bf4 {[%clk 0:00:11.4]} 58. Bd3
{[%clk 0:00:07.1]} 58... Nc7 {[%clk 0:00:11]} 59. Bc2 {[%clk 0:00:06.9]} 59...
Bg5 {[%clk 0:00:09.5]} 60. Bd1 {[%clk 0:00:06.9]} 60... Be7 {[%clk 0:00:08.6]}
61. Bc2 {[%clk 0:00:07.4]} 61... Ne6 {[%clk 0:00:08.7]} 62. c6 {[%clk
0:00:07.2]} 62... Nc7 {[%clk 0:00:09]} 63. Bf5 {[%clk 0:00:07.2]} 63... Kb6
{[%clk 0:00:09.1]} 64. Be4 {[%clk 0:00:07.7]} 64... Ka5 {[%clk 0:00:09.2]} 65.
Bf3 {[%clk 0:00:08.2]} 65... Ka4 {[%clk 0:00:09.5]} 66. Bd1+ {[%clk 0:00:08.9]}
66... Ka3 {[%clk 0:00:09.7]} 67. Bc2 {[%clk 0:00:07.3]} 67... Bg5 {[%clk
0:00:09.4]} 68. Bd1 {[%clk 0:00:06.3]} 68... Be7 {[%clk 0:00:09.3]} 69. Bc2
{[%clk 0:00:06.5]} 69... Kb2 {[%clk 0:00:09.7]} 70. Bd1 {[%clk 0:00:06.1]} 70...
Kc1 {[%clk 0:00:10.1]} 71. Bb3 {[%clk 0:00:06.4]} 71... Kd2 {[%clk 0:00:10.2]}
72. Ba4 {[%clk 0:00:06.6]} 72... Ke3 {[%clk 0:00:10.4]} 73. Bb3 {[%clk
0:00:05.9]} 73... Kf4 {[%clk 0:00:10.6]} 74. Bd1 {[%clk 0:00:06.1]} 74... Ke5
{[%clk 0:00:10.8]} 75. Bf3 {[%clk 0:00:06.2]} 75... Kf4 {[%clk 0:00:09.3]} 76.
Bd1 {[%clk 0:00:06.6]} 76... Ke3 {[%clk 0:00:09.5]} 77. Bb3 {[%clk 0:00:06.6]}
77... Kd2 {[%clk 0:00:09.8]} 78. Ba4 {[%clk 0:00:06.7]} 78... Kc1 {[%clk
0:00:09.8]} 79. Bb3 {[%clk 0:00:07.3]} 79... Kb2 {[%clk 0:00:10.3]} 80. Bd1
{[%clk 0:00:07.9]} 80... Ka3 {[%clk 0:00:10.6]} 1/2-1/2